[Event "*** Titled Tuesday Blitz"]
[Site "Chess.com"]
[Date "2020.11.03"]
[Round "5"]
[White "Kavyev_Ruslan"]
[Black "profofchess"]
[Result "0-1"]
[WhiteElo "2495"]
[BlackElo "2374"]
[TimeControl "180+1"]
[EndTime "10:59:46 PST"]
[Termination "profofchess won by checkmate"]

1. d4 {[%clk 0:02:56.6]} 1... Nf6 {[%clk 0:02:59.7]} 2. c4 {[%clk 0:02:55.2]}
2... e6 {[%clk 0:03:00]} 3. Nf3 {[%clk 0:02:55]} 3... c5 {[%clk 0:02:59.1]} 4.
d5 {[%clk 0:02:54.8]} 4... exd5 {[%clk 0:02:59.6]} 5. cxd5 {[%clk 0:02:54.8]}
5... d6 {[%clk 0:03:00.5]} 6. Nc3 {[%clk 0:02:54.9]} 6... g6 {[%clk 0:03:01.1]}
7. Nd2 {[%clk 0:02:54.1]} 7... Nbd7 {[%clk 0:03:00.7]} 8. e4 {[%clk 0:02:54.3]}
8... Bg7 {[%clk 0:02:57.6]} 9. Be2 {[%clk 0:02:54.3]} 9... O-O {[%clk
0:02:57.6]} 10. O-O {[%clk 0:02:53.7]} 10... a6 {[%clk 0:02:50]} 11. a4 {[%clk
0:02:43.8]} 11... Rb8 {[%clk 0:02:50.1]} 12. Nc4 {[%clk 0:02:29.1]} 12... Nb6
{[%clk 0:02:48.7]} 13. Na3 {[%clk 0:02:24.3]} 13... Re8 {[%clk 0:02:44.6]} 14.
f3 {[%clk 0:02:24.1]} 14... Bd7 {[%clk 0:02:41.5]} 15. Bf4 {[%clk 0:02:22.9]}
15... Qe7 {[%clk 0:02:29.7]} 16. a5 {[%clk 0:02:22.4]} 16... Nc8 {[%clk
0:02:28]} 17. Nc4 {[%clk 0:02:22.3]} 17... Nh5 {[%clk 0:02:09.1]} 18. Be3 {[%clk
0:02:21.7]} 18... f5 {[%clk 0:02:05.7]} 19. Bf2 {[%clk 0:01:40.5]} 19... f4
{[%clk 0:01:56.4]} 20. Na4 {[%clk 0:01:33.4]} 20... Bb5 {[%clk 0:01:54]} 21. Qc2
{[%clk 0:01:30.3]} 21... g5 {[%clk 0:01:29.7]} 22. h3 {[%clk 0:01:29]} 22... Qf6
{[%clk 0:01:14.1]} 23. Rab1 {[%clk 0:01:21.5]} 23... Ne7 {[%clk 0:01:02.8]} 24.
Nab6 {[%clk 0:01:18.5]} 24... Rbd8 {[%clk 0:01:00]} 25. Rfd1 {[%clk 0:01:13.1]}
25... Ng6 {[%clk 0:00:57.9]} 26. b4 {[%clk 0:01:12.4]} 26... cxb4 {[%clk
0:00:54.9]} 27. Bd4 {[%clk 0:01:12.3]} 27... Qf7 {[%clk 0:00:45.6]} 28. Bxg7
{[%clk 0:01:08]} 28... Qxg7 {[%clk 0:00:45.6]} 29. Rxb4 {[%clk 0:01:05.1]} 29...
Ng3 {[%clk 0:00:44.6]} 30. Bd3 {[%clk 0:00:48.8]} 30... h5 {[%clk 0:00:35]} 31.
Qb2 {[%clk 0:00:48.2]} 31... Qf7 {[%clk 0:00:22.1]} 32. Nd2 {[%clk 0:00:34.2]}
32... Bxd3 {[%clk 0:00:21.4]} 33. Na4 {[%clk 0:00:30.3]} 33... Bb5 {[%clk
0:00:20.8]} 34. Nc3 {[%clk 0:00:30.7]} 34... Ne5 {[%clk 0:00:13.4]} 35. Nxb5
{[%clk 0:00:30.7]} 35... Nd3 {[%clk 0:00:11.4]} 36. Qd4 {[%clk 0:00:25.2]} 36...
Ne2+ {[%clk 0:00:11]} 37. Kf1 {[%clk 0:00:24.7]} 37... Nxd4 {[%clk 0:00:11.9]}
38. Rxd4 {[%clk 0:00:24.6]} 38... axb5 {[%clk 0:00:10.8]} 39. Rxd3 {[%clk
0:00:25.2]} 39... Rc8 {[%clk 0:00:09.1]} 40. Rb3 {[%clk 0:00:25.7]} 40... Rc5
{[%clk 0:00:08.2]} 41. Rdb1 {[%clk 0:00:25]} 41... Qd7 {[%clk 0:00:07.8]} 42.
Rb4 {[%clk 0:00:24.1]} 42... Ra8 {[%clk 0:00:07.7]} 43. Nb3 {[%clk 0:00:24.5]}
43... Rc4 {[%clk 0:00:07.1]} 44. Nd4 {[%clk 0:00:21.9]} 44... Rxb4 {[%clk
0:00:07.1]} 45. Rxb4 {[%clk 0:00:21.8]} 45... Rxa5 {[%clk 0:00:07.5]} 46. Ne6
{[%clk 0:00:22.3]} 46... Ra4 {[%clk 0:00:06.5]} 47. Rb1 {[%clk 0:00:22.9]} 47...
g4 {[%clk 0:00:05.6]} 48. Rc1 {[%clk 0:00:23.8]} 48... Rc4 {[%clk 0:00:04.7]}
49. Ra1 {[%clk 0:00:21.5]} 49... b4 {[%clk 0:00:04.6]} 50. Ra8+ {[%clk
0:00:21.5]} 50... Kf7 {[%clk 0:00:04.9]} 51. Rf8+ {[%clk 0:00:21.6]} 51... Ke7
{[%clk 0:00:04.8]} 52. Rh8 {[%clk 0:00:22.1]} 52... Kf6 {[%clk 0:00:04.9]} 53.
Rf8+ {[%clk 0:00:22]} 53... Kg6 {[%clk 0:00:04.2]} 54. Rg8+ {[%clk 0:00:22]}
54... Kh7 {[%clk 0:00:04.3]} 55. Rb8 {[%clk 0:00:19.9]} 55... b3 {[%clk
0:00:03.9]} 56. Nf8+ {[%clk 0:00:20.1]} 56... Kg7 {[%clk 0:00:03.5]} 57. Nxd7
{[%clk 0:00:21]} 57... Rb4 {[%clk 0:00:03.8]} 58. e5 {[%clk 0:00:12.4]} 58... b2
{[%clk 0:00:04.1]} 59. hxg4 {[%clk 0:00:06.3]} 59... b1=Q+ {[%clk 0:00:05]} 60.
Kf2 {[%clk 0:00:06.7]} 60... Rb2# {[%clk 0:00:05.3]} 0-1

[Event "*** Titled Tuesday Blitz"]
[Site "Chess.com"]
[Date "2020.11.03"]
[Round "5"]
[White "Evachess2006"]
[Black "BJthechessgod"]
[Result "0-1"]
[WhiteElo "1639"]
[BlackElo "2296"]
[TimeControl "180+1"]
[EndTime "10:59:47 PST"]
[Termination "BJthechessgod won on time"]

1. e4 {[%clk 0:02:55.8]} 1... c5 {[%clk 0:00:10.2]} 2. Nf3 {[%clk 0:02:35.6]}
2... Nc6 {[%clk 0:00:11.1]} 3. d4 {[%clk 0:02:34.9]} 3... cxd4 {[%clk 0:00:12]}
4. Nxd4 {[%clk 0:02:34.1]} 4... g6 {[%clk 0:00:12.9]} 5. Nxc6 {[%clk 0:02:33.4]}
5... bxc6 {[%clk 0:00:13.5]} 6. Bc4 {[%clk 0:02:33.4]} 6... Bg7 {[%clk
0:00:12.7]} 7. O-O {[%clk 0:02:33.2]} 7... Nf6 {[%clk 0:00:13.1]} 8. Nc3 {[%clk
0:02:32.1]} 8... O-O {[%clk 0:00:13.2]} 9. Bg5 {[%clk 0:02:30.8]} 9... d6 {[%clk
0:00:13.1]} 10. Bb3 {[%clk 0:02:29.8]} 10... Rb8 {[%clk 0:00:13.4]} 11. Kh1
{[%clk 0:02:29.3]} 11... Nd7 {[%clk 0:00:13.8]} 12. Qd2 {[%clk 0:02:29.2]} 12...
Nc5 {[%clk 0:00:12.9]} 13. Rad1 {[%clk 0:02:24.8]} 13... Be6 {[%clk 0:00:13.2]}
14. Bxe6 {[%clk 0:02:21.1]} 14... Nxe6 {[%clk 0:00:14.1]} 15. Be3 {[%clk
0:02:19.9]} 15... a5 {[%clk 0:00:14.2]} 16. b3 {[%clk 0:02:18.9]} 16... Nc7
{[%clk 0:00:11.2]} 17. Ne2 {[%clk 0:02:19]} 17... Nb5 {[%clk 0:00:11.3]} 18. f3
{[%clk 0:02:14.9]} 18... Qc7 {[%clk 0:00:10.1]} 19. Ng3 {[%clk 0:02:13.2]} 19...
Nc3 {[%clk 0:00:09.8]} 20. Rde1 {[%clk 0:02:10.5]} 20... Nxa2 {[%clk 0:00:09.9]}
21. Bd4 {[%clk 0:02:08.6]} 21... Bxd4 {[%clk 0:00:09.6]} 22. Qxd4 {[%clk
0:02:09]} 22... Nb4 {[%clk 0:00:10.5]} 23. Qc3 {[%clk 0:02:05.4]} 23... c5
{[%clk 0:00:10.3]} 24. e5 {[%clk 0:02:03.9]} 24... d5 {[%clk 0:00:10.4]} 25. e6
{[%clk 0:02:00.9]} 25... f6 {[%clk 0:00:10.5]} 26. Rd1 {[%clk 0:01:59]} 26...
Rfd8 {[%clk 0:00:08.8]} 27. f4 {[%clk 0:01:57.6]} 27... f5 {[%clk 0:00:08.1]}
28. Ne2 {[%clk 0:01:53]} 28... d4 {[%clk 0:00:08.5]} 29. Nxd4 {[%clk 0:01:50.3]}
29... Nd5 {[%clk 0:00:09]} 30. Qd3 {[%clk 0:01:31.9]} 30... cxd4 {[%clk
0:00:08.6]} 31. Qxd4 {[%clk 0:01:31.7]} 31... Qc3 {[%clk 0:00:09.1]} 32. Rf3
{[%clk 0:01:22.4]} 32... Qxd4 {[%clk 0:00:07.7]} 33. Rxd4 {[%clk 0:01:23.3]}
33... Nb4 {[%clk 0:00:08.3]} 34. c3 {[%clk 0:01:19.4]} 34... Rxd4 {[%clk
0:00:07.9]} 35. cxd4 {[%clk 0:01:14.4]} 35... Rc8 {[%clk 0:00:08.8]} 36. h4
{[%clk 0:01:12.5]} 36... Rc1+ {[%clk 0:00:06.9]} 37. Kh2 {[%clk 0:01:11.7]}
37... Rd1 {[%clk 0:00:07.8]} 38. Rc3 {[%clk 0:01:05.5]} 38... Rxd4 {[%clk
0:00:07.9]} 39. Rc8+ {[%clk 0:01:06.1]} 39... Kg7 {[%clk 0:00:08.4]} 40. Ra8
{[%clk 0:01:06.3]} 40... Kf6 {[%clk 0:00:08.8]} 41. Rxa5 {[%clk 0:01:06.2]}
41... Kxe6 {[%clk 0:00:09.4]} 42. Ra7 {[%clk 0:01:05.9]} 42... Nd5 {[%clk
0:00:10.3]} 43. Rb7 {[%clk 0:01:05.1]} 43... Rxf4 {[%clk 0:00:10.8]} 44. Ra7
{[%clk 0:01:01]} 44... Rxh4+ {[%clk 0:00:10.9]} 45. Kg1 {[%clk 0:00:58.8]} 45...
Rg4 {[%clk 0:00:11.8]} 46. Ra6+ {[%clk 0:00:58.6]} 46... Ke5 {[%clk 0:00:11.6]}
47. Ra5 {[%clk 0:00:57.7]} 47... Ke4 {[%clk 0:00:11.5]} 48. Ra4+ {[%clk
0:00:56.6]} 48... Ke3 {[%clk 0:00:12]} 49. Ra3 {[%clk 0:00:53.3]} 49... Nf4
{[%clk 0:00:12.2]} 50. b4+ {[%clk 0:00:52.2]} 50... Ke4 {[%clk 0:00:12.6]} 51.
b5 {[%clk 0:00:50.6]} 51... Rxg2+ {[%clk 0:00:12.1]} 52. Kf1 {[%clk 0:00:50.2]}
52... Rb2 {[%clk 0:00:13]} 53. Ra5 {[%clk 0:00:48.8]} 53... Kf3 {[%clk
0:00:12.7]} 54. Ra3+ {[%clk 0:00:47.5]} 54... Kg4 {[%clk 0:00:13.2]} 55. Kg1
{[%clk 0:00:45]} 55... e5 {[%clk 0:00:13.5]} 56. Ra5 {[%clk 0:00:41.4]} 56... e4
{[%clk 0:00:13.4]} 57. Kf1 {[%clk 0:00:38.7]} 57... Kf3 {[%clk 0:00:13.4]} 58.
Ke1 {[%clk 0:00:38.9]} 58... e3 {[%clk 0:00:12.4]} 59. Kd1 {[%clk 0:00:38.9]}
59... Nd3 {[%clk 0:00:12.6]} 0-1

[Event "*** Titled Tuesday Blitz"]
[Site "Chess.com"]
[Date "2020.11.03"]
[Round "5"]
[White "niki_2003"]
[Black "Chessdude1987"]
[Result "1/2-1/2"]
[WhiteElo "1936"]
[BlackElo "2294"]
[TimeControl "180+1"]
[EndTime "10:59:48 PST"]
[Termination "Game drawn - insufficient material"]

1. d4 {[%clk 0:03:00.9]} 1... Nf6 {[%clk 0:02:58.5]} 2. c4 {[%clk 0:03:01.2]}
2... c5 {[%clk 0:02:56.7]} 3. d5 {[%clk 0:03:00.8]} 3... e6 {[%clk 0:02:56.6]}
4. Nc3 {[%clk 0:03:00.1]} 4... exd5 {[%clk 0:02:56.6]} 5. cxd5 {[%clk
0:03:00.3]} 5... d6 {[%clk 0:02:57]} 6. g3 {[%clk 0:03:00.7]} 6... g6 {[%clk
0:02:56.9]} 7. Bg2 {[%clk 0:03:00.6]} 7... Bg7 {[%clk 0:02:57.2]} 8. Nf3 {[%clk
0:03:01.1]} 8... O-O {[%clk 0:02:57.1]} 9. O-O {[%clk 0:03:01.7]} 9... Na6
{[%clk 0:02:57.2]} 10. Nd2 {[%clk 0:02:58]} 10... Nc7 {[%clk 0:02:57.1]} 11. a4
{[%clk 0:02:56.9]} 11... b6 {[%clk 0:02:57.1]} 12. Nc4 {[%clk 0:02:56.4]} 12...
Ba6 {[%clk 0:02:57.3]} 13. Nd2 {[%clk 0:02:50.6]} 13... Re8 {[%clk 0:02:49.2]}
14. Re1 {[%clk 0:02:48.3]} 14... Nd7 {[%clk 0:02:48.4]} 15. e4 {[%clk
0:02:47.1]} 15... b5 {[%clk 0:02:20.9]} 16. Bf1 {[%clk 0:02:28.6]} 16... bxa4
{[%clk 0:02:05.9]} 17. Rxa4 {[%clk 0:02:13.6]} 17... Bxf1 {[%clk 0:02:01]} 18.
Kxf1 {[%clk 0:02:07.9]} 18... Nb6 {[%clk 0:01:53.3]} 19. f4 {[%clk 0:02:06.3]}
19... Nxa4 {[%clk 0:01:52.4]} 20. Nxa4 {[%clk 0:02:05.6]} 20... Qd7 {[%clk
0:01:51]} 21. Nc3 {[%clk 0:02:04.5]} 21... Qh3+ {[%clk 0:01:48.7]} 22. Kg1
{[%clk 0:02:04.9]} 22... Bd4+ {[%clk 0:01:47.6]} 23. Kh1 {[%clk 0:02:04]} 23...
Bf2 {[%clk 0:01:45.2]} 24. Re2 {[%clk 0:01:54.5]} 24... Bxg3 {[%clk 0:01:40]}
25. Nf3 {[%clk 0:01:53.3]} 25... Rab8 {[%clk 0:01:20]} 26. e5 {[%clk 0:01:33.6]}
26... dxe5 {[%clk 0:01:19.7]} 27. d6 {[%clk 0:01:33.9]} 27... Nb5 {[%clk
0:01:17.1]} 28. Nd5 {[%clk 0:01:32.5]} 28... Bxf4 {[%clk 0:01:06.4]} 29. Nf6+
{[%clk 0:01:27.7]} 29... Kh8 {[%clk 0:01:04.4]} 30. Ng1 {[%clk 0:01:13.7]} 30...
Qf5 {[%clk 0:00:43.8]} 31. Nxe8 {[%clk 0:01:12.4]} 31... Rxe8 {[%clk 0:00:41.6]}
32. Qf1 {[%clk 0:00:59]} 32... Bxc1 {[%clk 0:00:38]} 33. Qxc1 {[%clk 0:00:55.8]}
33... Nxd6 {[%clk 0:00:37.8]} 34. Qxc5 {[%clk 0:00:53.8]} 34... Ne4 {[%clk
0:00:37.6]} 35. Qe3 {[%clk 0:00:52.4]} 35... Ng5 {[%clk 0:00:35.7]} 36. Rf2
{[%clk 0:00:50.3]} 36... Qg4 {[%clk 0:00:32.8]} 37. Rg2 {[%clk 0:00:50.1]} 37...
Qf4 {[%clk 0:00:19.9]} 38. Qxf4 {[%clk 0:00:47.8]} 38... exf4 {[%clk 0:00:20]}
39. Rxg5 {[%clk 0:00:48.4]} 39... f5 {[%clk 0:00:17.4]} 40. Rg2 {[%clk
0:00:44.3]} 40... Re3 {[%clk 0:00:17.3]} 41. Rf2 {[%clk 0:00:43.6]} 41... g5
{[%clk 0:00:17.3]} 42. h4 {[%clk 0:00:35.9]} 42... h6 {[%clk 0:00:17.3]} 43.
hxg5 {[%clk 0:00:28.5]} 43... hxg5 {[%clk 0:00:17]} 44. Nf3 {[%clk 0:00:28.8]}
44... g4 {[%clk 0:00:16.2]} 45. Nh4 {[%clk 0:00:29.3]} 45... f3 {[%clk
0:00:09.7]} 46. Nxf5 {[%clk 0:00:28.5]} 46... Re5 {[%clk 0:00:09.7]} 47. Nh4
{[%clk 0:00:25.2]} 47... Rh5 {[%clk 0:00:09.6]} 48. Rh2 {[%clk 0:00:24]} 48...
Kg8 {[%clk 0:00:07.5]} 49. Nxf3 {[%clk 0:00:22.9]} 49... Rxh2+ {[%clk
0:00:05.6]} 50. Nxh2 {[%clk 0:00:23.1]} 50... g3 {[%clk 0:00:06]} 51. Nf3 {[%clk
0:00:23.7]} 51... Kf7 {[%clk 0:00:06.3]} 52. Kg2 {[%clk 0:00:24.1]} 52... Ke6
{[%clk 0:00:06.7]} 53. Kxg3 {[%clk 0:00:24.3]} 53... Kd5 {[%clk 0:00:07.2]} 54.
Nd2 {[%clk 0:00:23.7]} 54... Kd4 {[%clk 0:00:06.5]} 55. Kf3 {[%clk 0:00:23.6]}
55... Kd3 {[%clk 0:00:06.9]} 56. b4 {[%clk 0:00:19.2]} 56... Kc3 {[%clk
0:00:05.5]} 57. b5 {[%clk 0:00:18.1]} 57... Kxd2 {[%clk 0:00:04.8]} 58. Ke4
{[%clk 0:00:18.3]} 58... Kc3 {[%clk 0:00:05.1]} 59. Kd5 {[%clk 0:00:18.9]} 59...
Kb4 {[%clk 0:00:05.3]} 60. Kc6 {[%clk 0:00:17.7]} 60... Ka5 {[%clk 0:00:05.5]}
61. Kb7 {[%clk 0:00:18.1]} 61... Kxb5 {[%clk 0:00:05.6]} 62. Kxa7 {[%clk
0:00:19]} 1/2-1/2

[Event "*** Titled Tuesday Blitz"]
[Site "Chess.com"]
[Date "2020.11.03"]
[Round "5"]
[White "Crazy_girl99"]
[Black "Agoking701"]
[Result "1-0"]
[WhiteElo "2523"]
[BlackElo "2361"]
[TimeControl "180+1"]
[EndTime "10:59:49 PST"]
[Termination "Crazy_girl99 won by checkmate"]

1. Nf3 {[%clk 0:03:00.9]} 1... Nf6 {[%clk 0:02:59.3]} 2. g3 {[%clk 0:02:59.9]}
2... g6 {[%clk 0:02:59.5]} 3. Bg2 {[%clk 0:02:58.7]} 3... Bg7 {[%clk 0:03:00.1]}
4. O-O {[%clk 0:02:58.9]} 4... O-O {[%clk 0:03:01]} 5. d4 {[%clk 0:02:59.1]}
5... d5 {[%clk 0:03:01.3]} 6. b3 {[%clk 0:02:58.4]} 6... c5 {[%clk 0:02:59.1]}
7. e3 {[%clk 0:02:54.1]} 7... Nc6 {[%clk 0:02:58.1]} 8. Bb2 {[%clk 0:02:54.2]}
8... Ne4 {[%clk 0:02:55.5]} 9. Nbd2 {[%clk 0:02:53.1]} 9... Bg4 {[%clk
0:02:50.2]} 10. h3 {[%clk 0:02:44]} 10... Bf5 {[%clk 0:02:48.5]} 11. g4 {[%clk
0:02:35.8]} 11... Nxd2 {[%clk 0:02:39.5]} 12. Qxd2 {[%clk 0:02:32.5]} 12... Be4
{[%clk 0:02:38.4]} 13. Rad1 {[%clk 0:02:15.7]} 13... f5 {[%clk 0:02:33.5]} 14.
Ne5 {[%clk 0:02:08.6]} 14... Nxe5 {[%clk 0:02:04]} 15. dxe5 {[%clk 0:02:07.9]}
15... e6 {[%clk 0:02:00.5]} 16. f3 {[%clk 0:02:07.1]} 16... fxg4 {[%clk
0:01:42.1]} 17. hxg4 {[%clk 0:01:59.6]} 17... d4 {[%clk 0:01:15.9]} 18. fxe4
{[%clk 0:01:55.6]} 18... Bh6 {[%clk 0:01:15.1]} 19. Rxf8+ {[%clk 0:01:47.8]}
19... Qxf8 {[%clk 0:01:16]} 20. Re1 {[%clk 0:01:08.6]} 20... Rd8 {[%clk
0:01:02.4]} 21. Bc1 {[%clk 0:00:20.7]} 21... Bxe3+ {[%clk 0:00:45]} 22. Rxe3
{[%clk 0:00:20.5]} 22... dxe3 {[%clk 0:00:45.6]} 23. Qxe3 {[%clk 0:00:21.2]}
23... Rd1+ {[%clk 0:00:42.8]} 24. Kh2 {[%clk 0:00:21.5]} 24... Qe7 {[%clk
0:00:38.5]} 25. Kg3 {[%clk 0:00:20.6]} 25... b6 {[%clk 0:00:32.8]} 26. Bf3
{[%clk 0:00:20.9]} 26... Rd8 {[%clk 0:00:27.6]} 27. Qg5 {[%clk 0:00:19.4]} 27...
Qc7 {[%clk 0:00:18.6]} 28. Qf6 {[%clk 0:00:18.2]} 28... Re8 {[%clk 0:00:13.4]}
29. Bh6 {[%clk 0:00:18.4]} 29... Qf7 {[%clk 0:00:13.2]} 30. Qxf7+ {[%clk
0:00:18.2]} 30... Kxf7 {[%clk 0:00:14.1]} 31. Kf4 {[%clk 0:00:18.6]} 31... Rd8
{[%clk 0:00:14.1]} 32. Ke3 {[%clk 0:00:18.9]} 32... Rd7 {[%clk 0:00:13.1]} 33.
Bg5 {[%clk 0:00:19.2]} 33... a6 {[%clk 0:00:12]} 34. Be2 {[%clk 0:00:19.7]}
34... Rc7 {[%clk 0:00:11.7]} 35. a4 {[%clk 0:00:18.2]} 35... Ra7 {[%clk
0:00:10.2]} 36. Bd8 {[%clk 0:00:18]} 36... b5 {[%clk 0:00:07.4]} 37. axb5 {[%clk
0:00:15.8]} 37... axb5 {[%clk 0:00:08.3]} 38. Bxb5 {[%clk 0:00:16]} 38... Ra2
{[%clk 0:00:09.2]} 39. Bd3 {[%clk 0:00:15.5]} 39... Ra1 {[%clk 0:00:09.2]} 40.
Bb6 {[%clk 0:00:15.6]} 40... Rg1 {[%clk 0:00:08.8]} 41. Be2 {[%clk 0:00:15.7]}
41... Rg3+ {[%clk 0:00:06]} 42. Kd2 {[%clk 0:00:15]} 42... c4 {[%clk 0:00:03.2]}
43. bxc4 {[%clk 0:00:15.4]} 43... Ke7 {[%clk 0:00:02.8]} 44. c5 {[%clk
0:00:15.9]} 44... Kd7 {[%clk 0:00:03.7]} 45. Bb5+ {[%clk 0:00:14.7]} 45... Kc8
{[%clk 0:00:03.5]} 46. c6 {[%clk 0:00:15.2]} 46... Ra3 {[%clk 0:00:02.1]} 47. c4
{[%clk 0:00:14.2]} 47... h5 {[%clk 0:00:02]} 48. gxh5 {[%clk 0:00:13.9]} 48...
gxh5 {[%clk 0:00:02.9]} 49. Bc5 {[%clk 0:00:14.3]} 49... h4 {[%clk 0:00:03.4]}
50. Bxa3 {[%clk 0:00:11.8]} 50... h3 {[%clk 0:00:04.3]} 51. Bd6 {[%clk
0:00:11.3]} 51... h2 {[%clk 0:00:04.9]} 52. Ba6+ {[%clk 0:00:11.6]} 52... Kd8
{[%clk 0:00:03.4]} 53. c7+ {[%clk 0:00:12.1]} 53... Ke8 {[%clk 0:00:02.9]} 54.
c8=Q+ {[%clk 0:00:12.5]} 54... Kf7 {[%clk 0:00:03.8]} 55. Qd7+ {[%clk 0:00:13]}
55... Kg6 {[%clk 0:00:04.4]} 56. Qxe6+ {[%clk 0:00:13.4]} 56... Kg5 {[%clk
0:00:05.3]} 57. Qf6+ {[%clk 0:00:13]} 57... Kg4 {[%clk 0:00:05.2]} 58. Bc8+
{[%clk 0:00:13.5]} 58... Kg3 {[%clk 0:00:03.8]} 59. e6+ {[%clk 0:00:14]} 59...
Kg2 {[%clk 0:00:03.3]} 60. Bxh2 {[%clk 0:00:12.2]} 60... Kh3 {[%clk 0:00:02.3]}
61. e7+ {[%clk 0:00:12]} 61... Kg2 {[%clk 0:00:02.7]} 62. Qg5+ {[%clk
0:00:11.4]} 62... Kh1 {[%clk 0:00:02.4]} 63. Qg1# {[%clk 0:00:09.8]} 1-0

[Event "*** Titled Tuesday Blitz"]
[Site "Chess.com"]
[Date "2020.11.03"]
[Round "5"]
[White "Jungle_Jaguar"]
[Black "FontVella8"]
[Result "0-1"]
[WhiteElo "2618"]
[BlackElo "2492"]
[TimeControl "180+1"]
[EndTime "10:59:50 PST"]
[Termination "FontVella8 won by checkmate"]

1. e4 {[%clk 0:03:00.9]} 1... e5 {[%clk 0:02:59]} 2. Nf3 {[%clk 0:03:00.7]} 2...
Nc6 {[%clk 0:02:59.6]} 3. Bb5 {[%clk 0:02:57.6]} 3... g6 {[%clk 0:02:59.5]} 4.
O-O {[%clk 0:02:56.9]} 4... Bg7 {[%clk 0:02:59.7]} 5. c3 {[%clk 0:02:55.3]} 5...
Nge7 {[%clk 0:03:00]} 6. d4 {[%clk 0:02:55.4]} 6... exd4 {[%clk 0:03:00.7]} 7.
cxd4 {[%clk 0:02:55.5]} 7... a6 {[%clk 0:03:01.4]} 8. Ba4 {[%clk 0:02:53.3]}
8... b5 {[%clk 0:03:01.3]} 9. Bb3 {[%clk 0:02:50.4]} 9... O-O {[%clk 0:03:01.1]}
10. Nc3 {[%clk 0:02:23.3]} 10... d6 {[%clk 0:03:01.1]} 11. h3 {[%clk 0:02:20]}
11... Na5 {[%clk 0:03:00.4]} 12. Bc2 {[%clk 0:02:19.8]} 12... c5 {[%clk
0:03:00]} 13. Bf4 {[%clk 0:02:10.1]} 13... Nec6 {[%clk 0:02:52.2]} 14. dxc5
{[%clk 0:01:55.1]} 14... dxc5 {[%clk 0:02:51.7]} 15. Nd5 {[%clk 0:01:55.5]}
15... Ra7 {[%clk 0:02:43.4]} 16. Bg5 {[%clk 0:01:49]} 16... f6 {[%clk
0:02:20.7]} 17. Be3 {[%clk 0:01:48.6]} 17... Qd6 {[%clk 0:02:05.9]} 18. b4
{[%clk 0:01:48.2]} 18... cxb4 {[%clk 0:01:54.6]} 19. Bxa7 {[%clk 0:01:37.1]}
19... Nxa7 {[%clk 0:01:54.8]} 20. Rb1 {[%clk 0:01:21.4]} 20... N7c6 {[%clk
0:01:54.5]} 21. Nd4 {[%clk 0:01:20.4]} 21... Bb7 {[%clk 0:01:41.6]} 22. Nxc6
{[%clk 0:01:17.3]} 22... Nxc6 {[%clk 0:01:41.8]} 23. Bb3 {[%clk 0:01:17.1]}
23... Kh8 {[%clk 0:01:41]} 24. Nb6 {[%clk 0:01:12]} 24... Nd4 {[%clk 0:01:32.9]}
25. Nd5 {[%clk 0:01:05.1]} 25... f5 {[%clk 0:01:29.6]} 26. Qd2 {[%clk
0:00:54.8]} 26... fxe4 {[%clk 0:00:58.4]} 27. Qxb4 {[%clk 0:00:53.9]} 27... Qe5
{[%clk 0:00:57.5]} 28. Ne3 {[%clk 0:00:48.7]} 28... Bc8 {[%clk 0:00:45.3]} 29.
Rfd1 {[%clk 0:00:35.8]} 29... Ne2+ {[%clk 0:00:36.9]} 30. Kh1 {[%clk 0:00:36.1]}
30... Nc3 {[%clk 0:00:34.1]} 31. Rbc1 {[%clk 0:00:24.2]} 31... Nxd1 {[%clk
0:00:33.6]} 32. Bxd1 {[%clk 0:00:24.7]} 32... Be6 {[%clk 0:00:28.6]} 33. Bg4
{[%clk 0:00:21.1]} 33... Bxa2 {[%clk 0:00:26]} 34. Qa5 {[%clk 0:00:15.2]} 34...
Bb3 {[%clk 0:00:18.8]} 35. Qxa6 {[%clk 0:00:15.2]} 35... h5 {[%clk 0:00:18.1]}
36. Bd7 {[%clk 0:00:14.4]} 36... Kh7 {[%clk 0:00:14.1]} 37. Bxb5 {[%clk
0:00:09.6]} 37... Rxf2 {[%clk 0:00:13.9]} 38. Bf1 {[%clk 0:00:04.1]} 38... Qg3
{[%clk 0:00:13.3]} 39. Qb5 {[%clk 0:00:02.6]} 39... Qxe3 {[%clk 0:00:11.2]} 40.
Rb1 {[%clk 0:00:03.1]} 40... Be6 {[%clk 0:00:10.6]} 41. Qb6 {[%clk 0:00:02.6]}
41... Qxb6 {[%clk 0:00:08.6]} 42. Rxb6 {[%clk 0:00:03.5]} 42... Rxf1+ {[%clk
0:00:07.9]} 43. Kh2 {[%clk 0:00:04.2]} 43... Be5+ {[%clk 0:00:08.3]} 44. g3
{[%clk 0:00:04.8]} 44... Bf5 {[%clk 0:00:06.1]} 45. Kg2 {[%clk 0:00:05.1]} 45...
Rd1 {[%clk 0:00:06.1]} 46. Rb7+ {[%clk 0:00:05.8]} 46... Kh6 {[%clk 0:00:06.2]}
47. g4 {[%clk 0:00:05.8]} 47... Rd2+ {[%clk 0:00:06.6]} 48. Kf1 {[%clk
0:00:05.8]} 48... hxg4 {[%clk 0:00:07.2]} 49. hxg4 {[%clk 0:00:06.7]} 49... Bxg4
{[%clk 0:00:07.8]} 50. Rb1 {[%clk 0:00:05.9]} 50... Rd1+ {[%clk 0:00:07.5]} 51.
Rxd1 {[%clk 0:00:05]} 51... Bxd1 {[%clk 0:00:08.4]} 52. Kf2 {[%clk 0:00:05.2]}
52... Bf3 {[%clk 0:00:08.6]} 53. Kg1 {[%clk 0:00:04.6]} 53... Kg5 {[%clk
0:00:09.5]} 54. Kf1 {[%clk 0:00:04.3]} 54... Kf4 {[%clk 0:00:10.1]} 55. Kg1
{[%clk 0:00:04.8]} 55... e3 {[%clk 0:00:10.6]} 56. Kh2 {[%clk 0:00:05.2]} 56...
Kg4+ {[%clk 0:00:09.7]} 57. Kg1 {[%clk 0:00:05.4]} 57... Bg3 {[%clk 0:00:09.1]}
58. Kf1 {[%clk 0:00:05.4]} 58... e2+ {[%clk 0:00:09.7]} 59. Kg1 {[%clk
0:00:06.2]} 59... e1=Q# {[%clk 0:00:10.2]} 0-1